Cogmind - Beta 15 @@@ ROGUE MODE // 2025.07.08 @ 10:42:43 Player: CSF Result: Destroyed by YT-X8Q(R) with Subdweller Machine Gun Performance ------------- Evolutions (0) 0 Regions Visited (2) 400 Robots Destroyed (33) 165 Value Destroyed (660) 660 Prototype IDs (0) 0 Alien Tech Used (0) 0 Bonus (0) 0 TOTAL SCORE: 1225 Bonus ------- None Cogmind --------- Core Integrity 0/250 Matter 300/300 Energy 200/250 System Corruption 0% Temperature Cool (1) Movement Treading (160) Location -10/Subcaves Parts ------- > --- POWER (1) -------- Ion Engine > --- PROPULSION (2) --- Light Treads Spiked Treads > --- UTILITY (2) ------ Scrap Shield > --- WEAPON (2) ------- Medium Laser Light EM Pulse Cannon > --- INVENTORY (5) ---- Subdweller Power Source Compact Wheel Seismic Detector Grenade Launcher Mining Claw Peak State ------------ > --- POWER ------------ Ion Engine > --- PROPULSION ------- Spiked Treads Compact Wheel > --- UTILITY ---------- Scrap Shield > --- WEAPON ----------- Light EM Pulse Cannon Mining Claw > --- INVENTORY -------- Light Treads Seismic Detector Medium Laser Grenade Launcher Maul [Rating: 11] Favorites ----------- Power Ion Engine Engine Ion Engine Propulsion Light Treads Treads Light Treads Leg Aluminum Leg Wheel Compact Wheel Utility Light Armor Plating Device Seismic Detector Storage Medium Storage Unit Protection Light Armor Plating Weapon Medium Laser Energy Gun Medium Laser Energy Cannon Light EM Pulse Cannon Ballistic Gun Assault Rifle Slashing Weapon Mining Claw Build | -11 -10 -10 ------- Run | Yrd Mat Sub Slots Evolved . | . . . Power . | . . . Propulsion . | . . . Utility . | . . . Weapon . | . . . Parts Attached 21 | . 17 4 Power 1 | . 1 . Engine 1 | . 1 . Core . | . . . Reactor . | . . . Propulsion 7 | . 6 1 Treads 5 | . 4 1 Leg . | . . . Wheel 2 | . 2 . Hover . | . . . Flight . | . . . Utility 7 | . 5 2 Device 1 | . 1 . Storage 2 | . 2 . Processor . | . . . Hackware . | . . . Protection 4 | . 2 2 Artifact . | . . . Weapon 6 | . 5 1 Energy Gun 1 | . 1 . Energy Cannon 2 | . 1 1 Ballistic Gun 2 | . 2 . Ballistic Cannon . | . . . Launcher . | . . . Special Weapon . | . . . Impact Weapon . | . . . Slashing Weapon 1 | . 1 . Piercing Weapon . | . . . Special Melee Weapon . | . . . Unidentified Prototypes . | . . . Parts Lost 2 | . 1 1 Power . | . . . Propulsion . | . . . Utility 1 | . . 1 Weapon 1 | . 1 . Highest Loss Streak 1 | . 1 1 To Critical Strikes . | . . . Average Backups 7 | 6 8 6 Power . | 1 . . Propulsion 1 | 4 2 . Utility 2 | . 2 1 Weapon 2 | 1 2 2 Tool/Special . | . . . Unused Backups 11 | . 6 5 Power 3 | . 1 2 Propulsion 2 | . 2 . Utility 3 | . 1 2 Weapon 3 | . 2 1 Tool/Special . | . . . Average Slot Usage (%) 93 | . 95 90 Engine 14 | . 14 14 Treads 20 | . 17 22 Leg 2 | . 3 . Wheel 5 | . 6 5 Storage 9 | . 14 4 Protection 12 | . 10 14 Energy Gun 11 | . 12 10 Energy Cannon 8 | . 2 14 Ballistic Gun 5 | . 11 . Slashing Weapon 2 | . 1 3 Peak Build Rating 11 | 6 9 11 Average Rating 8 | 6 7 10 On Entrance 7 | 6 6 9 Naked Turns . | . . . Heaviest Build 29 | 14 24 29 Greatest Support 40 | 20 40 40 Greatest Overweight (x) 1 | . 1 1 Average Overweight (x) . | . . . Largest Inventory Capacity 10 | 8 10 10 Average Capacity 7 | 8 8 6 Most Carried 10 | 6 10 9 Average Carried 7 | 6 8 6 Final Capacity 10 | 8 10 5 Final Carried 9 | 6 9 5 Class Distribution -------------------- 100% | Mutant Dominant Class ---------------- Mutant | -10/Materials Mutant | -10/Subcaves Resources | -11 -10 -10 ----------- Run | Yrd Mat Sub Matter Collected 749 | 212 383 154 Remotely . | . . . Salvage Created 1229 | 102 696 431 Parts 66 | 1 43 22 Haulers Intercepted 2 | . 2 . Recyclers Shooed 3 | . 3 . Parts Field Recycled . | . . . Retrieved Matter . | . . . Parts Self-Destructed 5 | . . 5 Prevented . | . . . Kills | -11 -10 -10 ------- Run | Yrd Mat Sub Combat Hostiles Destroyed 21 | . 12 9 Guns 16 | . 12 4 Cannons 4 | . . 4 Classes Destroyed 9 | 2 6 1 Worker 2 | . 2 . Tunneler 1 | 1 . . Hauler 2 | . 2 . Recycler 4 | 1 3 . Operator 1 | . 1 . Watcher 2 | . 2 . Swarmer 9 | . 9 . Grunt 3 | . 3 . Subdweller 9 | . . 9 Best Kill Streak 3 | 2 3 2 Combat Bots Only 3 | . 3 2 Max Kills in Single Turn 1 | 1 1 1 Gunslinging . | . . . Exploded . | . . . Melee . | . . . Uniques/NPCs Destroyed . | . . . Combat | -11 -10 -10 -------- Run | Yrd Mat Sub Hostile Shots Fired 127 | . 70 57 Missed 38 | . 19 19 Hits 89 | . 51 38 Projectile 89 | . 51 38 AOE 2 | . . 2 Critical Strikes 4 | . 2 2 Damage Taken 1417 | . 508 909 Core 254 | . 77 177 Absorbed by Shields . | . . . Regen/Repaired (Parts) 57 | . 57 . Core Remaining (%) 100 | 100 . . Volleys Fired 116 | 4 72 40 Largest 2 | 2 2 2 Hottest 106 | 70 70 106 Shots Fired 223 | 8 142 73 Gun 190 | 8 142 40 Cannon 33 | . . 33 Launcher . | . . . Special . | . . . Kinetic 75 | 4 71 . Thermal 115 | 4 71 40 Explosive . | . . . Electromagnetic 33 | . . 33 Robot Hit Streak 15 | 5 15 12 Robot Miss Streak 3 | . 3 2 Penetration Max . | . . . Secondary Targets 2 | . 2 . Max Gunslinging Chain 1 | . 1 . Shots Hit Robots 152 | 5 93 54 Core Hits 54 | 3 33 18 Critical Kills . | . . . Critical Parts Destroyed . | . . . Critical Strikes 7 | 1 3 3 Burn 7 | 1 3 3 Melee Attacks 9 | . 8 1 Impact . | . . . Slashing 9 | . 8 1 Piercing . | . . . Sneak Attacks . | . . . Combat Hostiles . | . . . Follow-up Attacks . | . . . Damage Inflicted 2070 | 73 1197 800 Guns 1629 | 73 1197 359 Cannons 441 | . . 441 Explosions . | . . . Melee . | . . . Ramming . | . . . Kinetic 625 | 49 576 . Thermal 1004 | 24 621 359 Explosive . | . . . Electromagnetic 441 | . . 441 Impact . | . . . Slashing . | . . . Piercing . | . . . Highest Corruption . | . . . Average Corruption . | . . . Corruption Purged . | . . . Corruption Blocked . | . . . Overload Shots . | . . . Overflow Damage . | . . . Projectiles . | . . . Explosions . | . . . Melee . | . . . Knockbacks . | . . . Impact . | . . . Kinetic . | . . . Secondary . | . . . Self-Inflicted Damage . | . . . Shots . | . . . Rammed . | . . . Targets Rammed . | . . . Kicked . | . . . Crushed . | . . . Highest Temperature 304 | 36 236 304 Average Temperature 41 | 19 39 61 Received Heat Transfer 582 | . 123 459 Siege Activations . | . . . Martial Activations . | . . . Shielding Activations . | . . . Robots Disrupted . | . . . Combat Hostiles . | . . . Robots Corrupted 1 | . . 1 Combat Hostiles 1 | . . 1 Parts Fried 4 | . . 4 Impact Corruptions . | . . . Robots Melted . | . . . Combat Hostiles . | . . . Parts Melted 2 | . 1 1 Heat Transferred 3441 | 148 1998 1295 Parts Sabotaged . | . . . Parts Stolen . | . . . Parts Stripped . | . . . Power Chain Reactions . | . . . Alert | -11 -10 -10 ------- Run | Yrd Mat Sub Maximum Alert Level 1 | . 1 . Low Security (%) 86 | 100 86 . Level 1 13 | . 13 . Level 2 . | . . . Level 3 . | . . . Level 4 . | . . . Level 5 . | . . . High Security . | . . . Max Security . | . . . Peak Influence 233 | 10 233 . Initial 6 | . 6 . Average 137 | 7 139 . Influence Increases 542 | 10 487 45 Destroy 0b10 Robot/C 240 | . 240 . Destroy 0b10 Robot/NC 60 | 10 50 . Destroy Leader 58 | . 58 . Successful Hack 16 | . 16 . Disable Machine 15 | . 15 . Destroy Structure 3 | . 3 . Lose Combat Pursuer 150 | . 105 45 Influence Decreases 542 | . 424 118 Entered New Map 40 | . 4 36 Time Decay 482 | . 410 72 Lost Part 20 | . 10 10 Squads Dispatched 2 | . 2 . Investigation . | . . . Extermination . | . . . Reinforcement 2 | . 2 . Assault . | . . . Garrison . | . . . Intercept . | . . . Searches Triggered . | . . . Construction Impeded . | . . . Haulers Reinforced . | . . . Active Scanning Responses . | . . . Cargo Convoy Interrupts . | . . . Stealth | -11 -10 -10 --------- Run | Yrd Mat Sub Distress Signals . | . . . Communications Jammed . | . . . Distress Signals . | . . . Times Spotted 45 | . 32 13 Peak Tracking Total 5 | . 5 5 Tactical Retreats 6 | . 4 2 Traps | -11 -10 -10 ------- Run | Yrd Mat Sub Traps Triggered 1 | . 1 . Indirectly . | . . . Trap Hack Attempts . | . . . Triggered . | . . . Disarmed . | . . . Reprogrammed 1 | . 1 . Reused . | . . . Traps Extracted . | . . . Installed . | . . . Triggered . | . . . Machines | -11 -10 -10 ---------- Run | Yrd Mat Sub Machines Disabled 2 | . 2 . Max in Single Turn 1 | . 1 . Machines Repaired . | . . . Machines Dismantled . | . . . Machines Sabotaged . | . . . Overloaded Fab Kills . | . . . Hacking | -11 -10 -10 --------- Run | Yrd Mat Sub Machines Accessed 9 | . 8 1 Terminals 6 | . 6 . Fabricators . | . . . Repair Stations 1 | . 1 . Recycling Units 1 | . 1 . Scanalyzers . | . . . Garrison Access . | . . . Total Hacks 31 | . 27 4 Successful 16 | . 12 4 Failed 15 | . 15 . Catastrophic 3 | . 3 . Database Lockouts . | . . . Manual 16 | . 16 . Terminals 22 | . 22 . Fabricators . | . . . Repair Stations 4 | . 4 . Recycling Units 1 | . 1 . Scanalyzers . | . . . Garrison Access . | . . . Terminal Hacks 13 | . 9 4 Record 4 | . . 4 Robot Analysis 6 | . 6 . Locate Traps 2 | . 2 . Reprogram Traps 1 | . 1 . Fabricator Hacks . | . . . Repair Station Hacks 3 | . 3 . Scan Component 2 | . 2 . Repair 1 | . 1 . Recycling Unit Hacks . | . . . Scanalyzer . | . . . Garrison Access Hacks . | . . . Unauthorized Hacks . | . . . Terminals . | . . . Fabricators . | . . . Repair Stations . | . . . Recycling Units . | . . . Scanalyzers . | . . . Garrison Access . | . . . Data Cores Recovered . | . . . Used . | . . . Hacking Detections 8 | . 8 . Full Trace Events . | . . . Feedback Events . | . . . Feedback Blocked . | . . . Robot Schematics Acquired . | . . . Robots Built . | . . . Authchips . | . . . Time . | . . . Total Robot Build Rating . | . . . Part Schematics Acquired . | . . . Parts Built . | . . . Authchips . | . . . Time . | . . . Total Part Build Rating . | . . . Parts Repaired 1 | . 1 . Time 26 | . 26 . Parts Recycled . | . . . Recycled Matter . | . . . Retrieved Matter . | . . . Retrieved Components . | . . . Parts Scanalyzed . | . . . Part Schematics Acquired . | . . . Parts Damaged . | . . . Bothacking | -11 -10 -10 ------------ Run | Yrd Mat Sub Used RIF Installer . | . . . Robots Hacked . | . . . Non-combat . | . . . Combat . | . . . Robot Hacks Applied . | . . . Relay Couplers Released . | . . . Fabnet Peak Effective % . | . . . Robots Rewired . | . . . Allies Hacked . | . . . Hacks Repelled . | . . . Allies | -11 -10 -10 -------- Run | Yrd Mat Sub Total Allies . | . . . Largest Group . | . . . Highest-Rated Group . | . . . Highest-Rated Ally . | . . . Total Orders . | . . . Ally Attacks . | . . . Total Damage . | . . . Kills . | . . . Allies Corrupted . | . . . Allies Melted . | . . . Intel | -11 -10 -10 ------- Run | Yrd Mat Sub Active Infowar (turns) 5 | . 5 . Seismic 5 | . 5 . Robot Analysis Total 6 | . 6 . Derelict Logs Recovered 1 | . . 1 Drone Launches . | . . . Drone Recoveries . | . . . Exploration | -11 -10 -10 ------------- Run | Yrd Mat Sub Turns Passed 2146 | 17 1122 1007 Spaces Moved 1066 | 5 526 535 Core . | . . . Treads 666 | . 274 392 Legs 107 | 5 102 . Wheels 293 | . 150 143 Hover . | . . . Flight . | . . . Fastest Speed 95 | 120 95 115 Average Speed 152 | 120 148 156 Slowest Speed 260 | 120 240 260 Overloaded Moves . | . . . Propulsion Burnouts . | . . . Robots Hopped . | . . . Potential Cave-ins . | . . . Cave-ins Triggered . | . . . Exploration Rate (%) 43 | 2 90 37 Regions Visited 2 Branch Regions 1 Pre-discovered Areas 1 | . . 1 Known Exits Taken . | . . . Unknown Exits Taken 2 | 1 1 . Scrap Searched 3 | . . 3 Spaces Dug 3 | . 3 . Terrain Destroyed 3 | . 3 . Melee 3 | . 3 . Projectile . | . . . AOE . | . . . Terrain Rammed . | . . . Walls Destroyed . | . . . Machines Disabled . | . . . Actions | -11 -10 -10 --------- Run | Yrd Mat Sub Total 1346 | 8 709 629 Wait 83 | . 60 23 Move 1064 | 4 525 535 Hop . | . . . Pick Up 14 | . 10 4 Fast Attach 5 | . 4 1 Attach 5 | . 3 2 Detach . | . . . Swap 24 | . 15 9 Drop 18 | . 12 6 Fire 116 | 4 72 40 Melee 9 | . 8 1 Ram . | . . . Kick . | . . . Crush . | . . . Escape Stasis . | . . . Rewire . | . . . Trap . | . . . Miscellaneous 8 | . . 8 Route ------- -11/Scrapyard -10/Materials (discovered 6 exits: [*Mat x3] / [*Min x2] / *Sub) -10/Subcaves History --------- Turn | Location | Event 14 | -11/Scrapyard | Discovered new exit (range 3) 18 | -11/Scrapyard | Entered Materials 18 | -10/Materials | Discovered new exit (range 14) 323 | -10/Materials | Discovered new exit (range 6) 329 | -10/Materials | Build established: Mutant 440 | -10/Materials | Discovered new exit (range 5) 691 | -10/Materials | Discovered new exit (range 15) 905 | -10/Materials | Repaired Lgt. Treads 923 | -10/Materials | Discovered new exit (range 13) 1050 | -10/Materials | Discovered new exit (range 4) 1140 | -10/Materials | Entered Subcaves 1160 | -10/Subcaves | Learned Materials non-interactive machine intel 1315 | -10/Subcaves | Core integrity fell below 50% 1385 | -10/Subcaves | Curiously followed by a Cobbler waking with a query about "LVR3C" 1479 | -10/Subcaves | Core integrity fell below 20% 1933 | -10/Subcaves | Visited Clippyterm 1938 | -10/Subcaves | Learned Factory emergency access door positions 1993 | -10/Subcaves | Disturbed a concealed Subdweller 2129 | -10/Subcaves | Learned location of Zion (-6) 2129 | -10/Subcaves | Met a Zionite searching for "candidates" 2147 | -10/Subcaves | Destroyed by YT-X8Q(R) with Subdweller Machine Gun Last Messages --------------- 02016_ Scrap Shield Fragment affixed to Scrap Shield (+37). 02025_ Searching scrap... 02025_ Found Sub. Power Source. 02025_ Found Battle Rifle. 02025_ Found 69 Matter. 02026_ Searching scrap... 02026_ Found Mak. Thermal Plating. 02026_ Found Flamer. 02026_ Found 42 Matter. 02033_ Searching scrap... 02033_ Found Shrapnel Trap. 02033_ Found 67 Matter. 02078_ OU-W0O(z): "She is not going to be happy we haven't found any suitable candidates yet." 02129_ OU-W0O(z): "Hey you! It's really dangerous down here, I feel that you could die at any moment. For your health and safety might I suggest a trip to Zion?" World map updated: -6/Zion. Map ----- +----------------------------------------------------+ | ?????????????????????????????????????????????????? | | ?????????????????????????????????????????????????? | | ?????????????????????????????????????????????????? | | ?????????????????????????????????????????????????? | | ?????????????????????????????????????????????????? | | ?????????????????????????????????????????????????? | | ?????????????????????????????????????????????????? | | ?????????????????????????????????????????????????? | | ?????????????????????????????????????????????????? | | ???????????????????????? ??????????????????????? | | ??????????????????????? ????????????????????? | | ??????????????????????? ?????????????????????? | | ????????????????? ????? ????????????????????? | | ????????????????? ???? ?????????????????????? | | ????????????????? ???? ?????????????????????? | | ??? ?????????????? ??? "#????????????????????? | | ???????????? ##?# "##? ???????????????? | | ???????????? %##z #"##" #???????????????? | | # ?????????????z """#???????????????? | | # ??####???????%% % ""##" ????????????? | | # ??# #???????# # " ??????????? | | ??# #???????# "??????????? | | ?## ##??###?# R "???????????? | | ## #### ### % R #????????????????? | | ??# % #?????????????????????? | | ??# % @##?????????????????????? | | ? ## # ## ###??????????????????????? | | ??????# ####### ###????????????????????????? | | ??????# ####?????###??????????????????????????? | | ??????# #?????????????????????????????????????? | | ??????# ##?????????????????????????????????????? | | ???#### ######??#####?????????????????????????? | | ???# # #### ####??????????????????????? | | ???# ## #??????????????????????? | | ???# ### #??????????????????????? | | ???###??########## #??????????????????????? | | ?????????????????#### %#??????????????????????? | | ????????????????????## ##??????????????????????? | | ?????????????????????# ##??????????????????????? | | ?????????????????????### ##?????????????????????? | | ???????????????????????# #####?????????????????? | | ???????????????????????# ###???????????????? | | ???????????????????????## #????????#??????? | | ????????????????????????# ### #?????? #??????? | | ???????????????????????## ########???? ###????? | | ???????????????????????# #*!#[&#??## ?????? | | ???????????????????????## ##%|% %#?? #??????? | | ????????????????????????## ###"&###?? #??????? | | ?????????????????????????# ## #### #??????? | | ?????????????????????????# #!## #???????? | +----------------------------------------------------+ Best States ------------- Heat Dissipation 25 Energy Generation 10 Energy Capacity 250 Matter Stores 300 Matter Capacity 300 Sight Range 16 Terrain Scan Density 10 Armor Coverage 800 Evasion (%) 55 Recoil Reduction 2 Item Schematics ----------------- None Robot Schematics ------------------ None Fabricated ------------ Nothing Repaired ---------- Lgt. Treads | 59% | -10/Materials Alien Tech Used ----------------- None Achievements -------------- None Challenges ------------ None Game ------ Seed ThunderMediumCore Manual? 0 Play Time 00:27:13 Cumulative 15.6 hours Start 2025.07.08 @ 10:12:14 End 2025.07.08 @ 10:42:43 Sessions 1 Manual Loads 0 Difficulty Rogue Special Mode None Game No. 9 Rogue 9 Adventurer 0 Explorer 0 Win Type - Total 2 Types 2/0/0/0/0/0/0/0/0/0 Lore% 25 Gallery% 12 Achievement% 27 Wizard Run 0 Options --------- Layout 1 ASCII 0 Keyboard 0 Movement Mouse Keybinds 0 Fullscreen 1 Font 24/Smallcaps Map View 50x35 Zoom Use 1% Tactical HUD 1 Map Filters NONE Filters NONE Steam 1 RUN: 09f0c348-41f0-46d9-ba76-a43f4d807511